bitfinex/quotes_BTCUSD_20251212
["timestamp","ask_amount","ask_price","bid_price","bid_amount"]
[1765552101466,0.03090287,92082.0,92081.0,0.00011699]
[1765552101640,0.04112989,92082.0,92081.0,0.00011699]
[1765552101844,0.4653302,92082.0,92081.0,0.00011699]
[1765552102073,0.38559126,92082.0,92081.0,0.00011699]
[1765552102429,0.37662126,92082.0,92081.0,0.00127562]
[1765552103082,0.37362126,92082.0,92081.0,0.00127562]
[1765552103859,0.35630126,92082.0,92081.0,0.00127562]
[1765552104052,0.37362126,92082.0,92081.0,0.00127562]
[1765552104253,0.36862126,92082.0,92081.0,0.00127562]
[1765552104687,0.37362126,92082.0,92081.0,0.00127562]
[1765552104927,0.49309888,92082.0,92081.0,0.00127562]
[1765552105287,0.38059126,92082.0,92081.0,0.00127562]
[1765552105875,0.38559126,92082.0,92081.0,0.00127562]
[1765552107570,0.21727326,92050.0,92048.0,0.01132]
[1765552107723,0.21727326,92050.0,92041.0,0.22815721]
[1765552107724,0.01086436,92044.0,92041.0,0.22815721]
[1765552107906,0.01086377,92049.0,92045.0,0.01086425]
[1765552108322,0.01086389,92048.0,92044.0,0.01086436]
[1765552108526,0.22825543,92050.0,92045.0,0.21728502]
[1765552108806,0.00011632,92050.0,92047.0,0.00098542]
[1765552109010,0.01086389,92048.0,92045.0,0.01086425]
[1765552109298,0.01086401,92047.0,92044.0,0.01086436]
[1765552109510,0.21729512,92041.0,92039.0,0.01132]
[1765552109888,0.22815462,92043.0,92039.0,0.01132]
[1765552110174,0.01086495,92039.0,92035.0,0.01086543]
[1765552110377,0.01086484,92040.0,92036.0,0.01086531]
[1765552110758,0.0108646,92042.0,92038.0,0.01086507]
[1765552110998,0.02818448,92043.0,92039.0,0.01086495]
[1765552111265,0.02818448,92043.0,92040.0,0.01086484]
[1765552111448,0.02818448,92043.0,92042.0,0.0159]
[1765552111791,0.01086472,92041.0,92037.0,0.01086519]
[1765552112013,0.01086472,92041.0,92038.0,0.01086507]
[1765552112239,0.01086472,92041.0,92032.0,0.22818091]
[1765552112240,0.21730651,92036.0,92031.0,0.0108659]
[1765552112445,0.01086531,92036.0,92032.0,0.01086578]
[1765552112645,0.01086519,92037.0,92034.0,0.01086554]
[1765552112889,0.01086484,92040.0,92036.0,0.01086531]
[1765552113223,0.01086436,92044.0,92039.0,0.02798]
[1765552113426,0.01732,92043.0,92042.0,0.0148646]
[1765552113592,0.01732,92043.0,92042.0,0.004]
[1765552113796,0.01086389,92048.0,92044.0,0.01086436]
[1765552114002,0.02818401,92047.0,92042.0,0.0148646]
[1765552114177,0.01086342,92052.0,92049.0,0.00092744]
[1765552114379,0.0108633,92053.0,92049.0,0.25711302]
[1765552114591,0.21724711,92062.0,92049.0,0.25711302]
[1765552114592,0.2172411,92064.0,92049.0,0.23410302]
[1765552114791,0.47301567,92092.0,92049.0,0.23410302]
[1765552114792,0.01732,92059.0,92049.0,0.23410302]
[1765552115057,0.22809258,92068.0,92049.0,0.25711302]
[1765552115282,0.22812358,92056.0,92049.0,0.25711302]
[1765552115482,0.01086295,92056.0,92049.0,0.23410302]
[1765552115717,0.01732,92061.0,92049.0,0.25711302]
[1765552115914,0.01086141,92069.0,92049.0,0.25711302]
[1765552115915,0.01086094,92073.0,92049.0,0.25711302]
[1765552116115,0.21720088,92081.0,92049.0,0.26311302]
[1765552116459,0.01086023,92079.0,92075.0,0.01086071]
[1765552116658,0.01086023,92079.0,92073.0,0.01086094]
[1765552116659,0.01097709,92079.0,92074.0,0.01208]
[1765552116795,0.21720715,92078.0,92074.0,0.01208]
[1765552117002,0.21721422,92075.0,92074.0,0.01208]
[1765552117223,0.21721422,92075.0,92073.0,0.0002318]
[1765552117425,0.22806997,92077.0,92073.0,0.01109274]
[1765552117426,0.01086047,92077.0,92073.0,0.01109274]
[1765552117629,0.01086059,92076.0,92073.0,0.01109274]
[1765552117827,0.01086047,92077.0,92074.0,0.01086082]
[1765552118032,0.00011686,92079.0,92076.0,0.02676059]
[1765552118245,0.00011686,92079.0,92076.0,0.04977059]
[1765552118408,0.01086047,92077.0,92074.0,0.01086082]
[1765552118627,0.01086059,92076.0,92073.0,0.0002318]
[1765552118845,0.22807245,92076.0,92073.0,0.0032318]
[1765552119054,0.21721658,92074.0,92073.0,0.0032318]
[1765552119273,0.21882945,92074.0,92073.0,0.0002318]
[1765552119987,0.00161287,92074.0,92073.0,0.0002318]
[1765552120224,0.01889287,92074.0,92073.0,0.0002318]
[1765552120427,0.00161287,92074.0,92073.0,0.0002318]
[1765552120628,0.01889287,92074.0,92073.0,0.0002318]
[1765552120942,0.07468906,92074.0,92073.0,0.0002318]
[1765552121180,0.02289287,92074.0,92073.0,0.0002318]
[1765552121358,0.02289287,92074.0,92073.0,0.0052318]
[1765552122079,0.03197287,92074.0,92073.0,0.0002318]
[1765552122407,0.02289287,92074.0,92073.0,0.0002318]
[1765552123063,0.01889287,92074.0,92073.0,0.0002318]
[1765552123631,0.01889287,92074.0,92073.0,0.0022318]
[1765552123968,0.01889287,92074.0,92073.0,0.0002318]
[1765552124170,0.10161348,92074.0,92073.0,0.0002318]
[1765552124511,0.04019989,92074.0,92073.0,0.0002318]
[1765552124672,0.04927989,92074.0,92073.0,0.0002318]
[1765552124875,0.10945453,92074.0,92073.0,0.0002318]
[1765552125073,0.10945453,92074.0,92037.0,0.01086519]
[1765552125074,0.10945453,92074.0,92041.0,0.01086472]
[1765552125075,0.01086436,92044.0,92041.0,0.01086472]
[1765552125274,0.01086377,92049.0,92042.0,0.0108646]
[1765552125478,0.01728,92050.0,92048.0,0.0159]
[1765552125746,0.01728,92050.0,92049.0,0.00069561]
[1765552126271,0.01086283,92057.0,92054.0,0.01086318]
[1765552126487,0.01086389,92048.0,92040.0,0.01208]
[1765552126684,0.01086389,92048.0,92044.0,0.01086436]
[1765552126896,0.01086389,92048.0,92045.0,0.01086425]
[1765552127096,0.01086389,92048.0,92044.0,0.01086436]
[1765552127339,0.22814431,92047.0,92042.0,0.0108646]
[1765552127687,0.01086354,92051.0,92046.0,0.22814662]
[1765552127890,0.0108633,92053.0,92048.0,0.22814075]
[1765552128121,0.01728,92052.0,92050.0,0.21727165]
[1765552128317,0.01728,92052.0,92048.0,0.01086389]
[1765552128450,0.01086318,92054.0,92050.0,0.01086366]
[1765552128652,0.01728,92052.0,92049.0,0.03567377]
[1765552128912,0.01086259,92059.0,92055.0,0.01086307]
[1765552129054,0.01086259,92059.0,92054.0,0.01086318]
[1765552129055,0.21725669,92057.0,92054.0,0.01086318]
[1765552129259,0.21725669,92057.0,92049.0,0.01086377]
[1765552129260,0.01086401,92047.0,92041.0,0.21729437]
[1765552129462,0.21728502,92045.0,92040.0,0.01256632]
[1765552129888,0.21728502,92045.0,92040.0,0.00011632]
[1765552131098,0.21729446,92041.0,92040.0,0.00011632]
[1765552132719,0.01086425,92045.0,92042.0,0.0108646]
[1765552133064,0.22814431,92047.0,92044.0,0.00084057]
[1765552133223,0.01086448,92043.0,92040.0,0.00711632]
[1765552133420,0.22815465,92043.0,92040.0,0.00711632]
[1765552133760,0.01086425,92045.0,92042.0,0.0268446]
[1765552133977,0.01728,92044.0,92042.0,0.22815496]
[1765552134185,0.01728,92044.0,92042.0,0.0108646]
[1765552134382,0.01728,92044.0,92042.0,0.002]
[1765552135448,0.01728,92044.0,92042.0,0.21929114]
[1765552135650,0.01728,92044.0,92040.0,0.22827569]
[1765552135651,0.01728,92044.0,92040.0,0.01098116]
[1765552135858,0.01086401,92047.0,92043.0,0.26894349]
[1765552136063,0.01728,92048.0,92046.0,0.01598]
[1765552136273,0.21728974,92043.0,92042.0,0.003]
[1765552136896,0.01728,92043.0,92042.0,0.003]
[1765552137108,0.01086425,92045.0,92042.0,0.003]
[1765552137109,0.21728738,92044.0,92042.0,0.003]
[1765552137338,0.21728738,92044.0,92033.0,0.01086566]
[1765552137339,0.02814448,92043.0,92038.0,0.01086507]
[1765552137559,0.01086425,92045.0,92042.0,0.0108646]
[1765552137793,0.01086425,92045.0,92040.0,0.01098116]
[1765552137794,0.0108613,92070.0,92061.0,0.01086236]
[1765552138005,0.00908,92088.0,92044.0,0.01598]
[1765552138006,0.01728,92081.0,92076.0,0.01086059]
[1765552138215,0.01085929,92087.0,92080.0,0.01086012]
[1765552138420,0.01085917,92088.0,92086.0,0.01245]
[1765552138631,0.01728,92087.0,92086.0,0.01245]
[1765552138836,0.06501665,92094.0,92087.0,0.04079]
[1765552139068,0.01085906,92089.0,92086.0,0.01085941]
[1765552139273,0.02813882,92091.0,92087.0,0.22804473]
[1765552139481,0.02813882,92091.0,92086.0,0.01085941]
[1765552139482,0.01085894,92090.0,92086.0,0.01085941]
[1765552139692,0.01728,92091.0,92088.0,0.01085917]
[1765552139904,0.06513353,92094.0,92090.0,0.03928894]
[1765552140111,0.01085858,92093.0,92090.0,0.03928894]
[1765552140331,0.05427506,92094.0,92091.0,0.22803475]
[1765552140546,0.05427506,92094.0,92093.0,0.01598]
[1765552140760,0.00011688,92094.0,92093.0,0.01598]
[1765552140979,0.01085575,92117.0,92093.0,0.01598]
[1765552140980,0.01993293,92141.0,92133.0,0.01085387]
[1765552141204,0.21702659,92155.0,92094.0,0.2907]
[1765552141205,0.00908,92168.0,92151.0,0.01598]
[1765552141415,0.00908,92168.0,92142.0,0.01245]
[1765552141416,0.01085057,92161.0,92154.0,0.0268314]
[1765552141629,0.21700682,92163.0,92154.0,0.0268314]
[1765552141630,0.01085034,92163.0,92158.0,0.01085092]
[1765552141829,0.01084998,92166.0,92161.0,0.01085057]
[1765552142056,0.01285256,92168.0,92167.0,0.2169974]
[1765552142057,0.00200281,92168.0,92167.0,0.2169974]
[1765552142232,0.00038994,92168.0,92167.0,0.28071824]
[1765552142370,0.00038994,92168.0,92167.0,0.2329774]
[1765552142577,0.00038994,92168.0,92154.0,0.0108514]
[1765552142578,0.01085057,92161.0,92154.0,0.0108514]
[1765552142797,0.22947538,92161.0,92155.0,0.01085128]
[1765552143020,0.01085092,92158.0,92154.0,0.0108514]
[1765552143274,0.01085092,92158.0,92152.0,0.2278834]
[1765552143275,0.01085116,92156.0,92152.0,0.01085163]
[1765552143523,0.01085151,92153.0,92145.0,0.01085246]
[1765552143722,0.01085246,92145.0,92142.0,0.01245]
[1765552143929,0.01085363,92135.0,92127.0,0.01732]
[1765552144104,0.01085363,92135.0,92130.0,0.01085422]
[1765552144105,0.01085375,92134.0,92130.0,0.01085422]
[1765552144300,0.0124665,92135.0,92130.0,0.01085422]
[1765552144545,0.01085375,92134.0,92129.0,0.01085434]
[1765552144745,0.00161287,92135.0,92132.0,0.22793383]
[1765552145185,0.00200257,92135.0,92132.0,0.22793383]
[1765552145331,0.00200257,92135.0,92128.0,0.22794193]
[1765552145332,0.01085422,92130.0,92127.0,0.007]
[1765552145590,0.00200257,92135.0,92131.0,0.0108541]
[1765552145791,0.01085422,92130.0,92125.0,0.01085481]
[1765552145989,0.21707984,92132.0,92125.0,0.01085481]
[1765552146192,0.01085446,92128.0,92123.0,0.01085505]
[1765552146395,0.01085375,92134.0,92120.0,0.01245]
[1765552146396,0.01085505,92123.0,92120.0,0.01245]
[1765552146599,0.01085493,92124.0,92118.0,0.01085564]
[1765552146801,0.02564049,92135.0,92122.0,0.01085517]
[1765552146802,0.01085469,92126.0,92122.0,0.01085517]
[1765552147001,0.00585422,92130.0,92126.0,0.01085469]
[1765552147206,0.01085399,92132.0,92124.0,0.21709639]
[1765552147207,0.01085399,92132.0,92127.0,0.01085458]
[1765552147407,0.01085399,92132.0,92114.0,0.21712014]
[1765552147409,0.21708691,92129.0,92073.0,0.05837735]
[1765552147606,0.21708691,92129.0,92052.0,0.09654456]
[1765552147607,0.00099999,92040.0,92031.0,0.02481]
[1765552147813,0.00099999,92040.0,92037.0,0.01086519]
[1765552148011,0.01086472,92041.0,92038.0,0.01704816]
[1765552148376,0.01086472,92041.0,92021.0,0.01086708]
[1765552148377,0.01086436,92044.0,92039.0,0.02481]
[1765552148496,0.01086436,92044.0,92025.0,0.01750185]
[1765552148497,0.01086519,92037.0,92025.0,0.01750185]
[1765552148704,0.01086519,92037.0,92024.0,0.03726]
[1765552148705,0.01086637,92027.0,92026.0,0.00547619]
[1765552148899,0.21734641,92019.0,92011.0,0.02481]
[1765552149115,0.24234641,92019.0,92011.0,0.02481]
[1765552149432,0.24234641,92019.0,92000.0,9.8989]
[1765552149433,0.53304641,92019.0,92000.0,9.8989]
[1765552149913,0.53304641,92019.0,92003.0,0.02481]
[1765552150127,0.01086673,92024.0,92018.0,0.0249]
[1765552150325,0.01086696,92022.0,92018.0,0.0249]
[1765552150529,0.002,92019.0,92018.0,0.0249]
[1765552150947,0.02502002,92019.0,92018.0,0.0249]
[1765552151152,0.002,92019.0,92018.0,0.0249]
[1765552151557,0.003,92019.0,92018.0,0.0249]
[1765552152007,0.003,92019.0,92018.0,0.04663487]
[1765552152302,0.003,92019.0,92018.0,0.33733487]
[1765552152538,0.003,92019.0,92018.0,0.3156]
[1765552152728,0.003,92019.0,92018.0,0.04226]
[1765552152925,0.001,92019.0,92018.0,0.06359513]
[1765552153293,0.00199998,92040.0,92034.0,0.22817562]
[1765552153658,0.01086448,92043.0,92036.0,0.21730627]
[1765552153946,0.01086507,92038.0,92035.0,0.04217]
[1765552154155,0.01386696,92022.0,92019.0,0.02481]
[1765552154353,0.003,92022.0,92019.0,0.03567732]
[1765552154560,0.01086625,92028.0,92024.0,0.01086673]
[1765552154734,0.01086625,92028.0,92025.0,0.03567661]
[1765552154916,0.22819329,92028.0,92025.0,0.02481]
[1765552155116,0.22819329,92028.0,92026.0,0.01736]
[1765552155540,0.22819329,92028.0,92026.0,0.04217]
[1765552155740,0.22819329,92028.0,92027.0,0.02981]
[1765552156164,0.01086625,92028.0,92027.0,0.05462]
[1765552156619,0.01086625,92028.0,92018.0,9e-05]
[1765552156620,0.21734405,92020.0,92018.0,9e-05]
[1765552158498,0.21734405,92020.0,92018.0,0.00145274]
[1765552158714,0.21734405,92020.0,92018.0,9e-05]
[1765552158935,0.005,92020.0,92019.0,0.00133373]
[1765552159150,0.009,92020.0,92019.0,0.00133373]
[1765552160143,0.005,92020.0,92019.0,0.00133373]
[1765552160778,0.21934405,92020.0,92019.0,0.00133373]
[1765552161003,0.27136244,92020.0,92019.0,0.00133373]
[1765552161230,0.27136244,92020.0,92018.0,9e-05]
[1765552161232,0.2907,92019.0,92018.0,9e-05]
[1765552161446,0.21738657,92002.0,92001.0,0.1]
[1765552161877,0.26740496,92002.0,92001.0,0.1]
[1765552162101,0.26740496,92002.0,92000.0,9.88645]
[1765552162102,0.34071839,92001.0,92000.0,9.32717295]
[1765552162325,0.34071839,92001.0,92000.0,8.6678959]
[1765552162326,0.38955488,92001.0,92000.0,8.6678959]
[1765552162555,0.38955488,92001.0,92000.0,8.63527885]
[1765552162556,0.5000625,92001.0,92000.0,8.63527885]
[1765552162780,0.45122601,92001.0,92000.0,8.60304986]
[1765552162996,0.34071839,92001.0,92000.0,8.57043281]
[1765552163209,0.05001839,92001.0,92000.0,8.53780014]
[1765552163432,0.21738657,92002.0,92000.0,8.53780014]
[1765552163659,0.21838657,92002.0,92000.0,8.53780014]
[1765552163874,0.001,92002.0,92000.0,8.53780014]
[1765552164113,0.01086921,92003.0,92000.0,8.5486697]
[1765552164343,0.01086921,92003.0,92000.0,8.53780014]
[1765552164344,0.006,92001.0,92000.0,8.53780014]
[1765552164590,0.21738764,92002.0,92000.0,8.53780014]
[1765552164999,0.21938764,92002.0,92000.0,8.53780014]
[1765552165219,0.22438764,92002.0,92000.0,8.53780014]
[1765552165663,0.001,92001.0,92000.0,8.53780014]
[1765552165911,0.001,92001.0,92000.0,8.56052014]
[1765552166135,0.001,92001.0,92000.0,8.77791144]
[1765552166349,0.00160348,92002.0,92001.0,0.01174]
[1765552166564,0.00160348,92002.0,92001.0,0.07355889]
[1765552166793,0.00099999,92050.0,92036.0,0.21730627]
[1765552167277,0.00099999,92050.0,92036.0,0.24002627]
[1765552167278,0.1621,92037.0,92036.0,0.24002627]
[1765552167918,0.1621,92037.0,92036.0,0.24014315]
[1765552168370,0.15822672,92037.0,92036.0,0.24014315]
[1765552168604,0.15822672,92037.0,92036.0,0.24514315]
[1765552169258,0.15822672,92037.0,92036.0,0.26250315]
[1765552169898,0.15822672,92037.0,92036.0,0.00011688]
[1765552170345,0.15822672,92037.0,92036.0,0.02883688]
[1765552170581,0.15822672,92037.0,92036.0,0.02283688]
[1765552171033,0.15822672,92037.0,92036.0,0.02883688]
[1765552171283,0.15789755,92037.0,92036.0,0.04019688]
[1765552171708,0.15789755,92037.0,92036.0,0.04419688]
[1765552171933,0.15789755,92037.0,92036.0,0.00011688]
[1765552172343,0.15789755,92037.0,92036.0,0.03884688]
[1765552172558,0.15789755,92037.0,92036.0,0.04184688]
[1765552172768,0.15789755,92037.0,92036.0,0.05920688]
[1765552173302,0.15789755,92037.0,92036.0,0.06420688]
[1765552173474,0.15789755,92037.0,92036.0,0.05920688]
[1765552173913,0.15789755,92037.0,92036.0,0.06320688]
[1765552174124,0.15789755,92037.0,92036.0,0.02312688]
[1765552174277,0.15789755,92037.0,92036.0,0.01612688]
[1765552174478,0.1736873,92037.0,92036.0,0.00511688]
[1765552174663,0.15951042,92037.0,92036.0,0.00711688]
[1765552174865,0.16973744,92037.0,92036.0,0.00211688]
[1765552175066,0.18629744,92037.0,92036.0,0.00611688]
[1765552175415,0.34041418,92037.0,92036.0,0.00411688]
[1765552175719,0.64119354,92037.0,92036.0,0.00711688]
[1765552176380,0.66430721,92037.0,92036.0,0.00311688]
[1765552176814,0.57575184,92037.0,92036.0,0.00311688]
[1765552177042,0.01086767,92016.0,92012.0,0.01086814]
[1765552177244,0.01086696,92022.0,92016.0,0.01086767]
[1765552177470,0.01186719,92020.0,92013.0,0.01086802]
[1765552177726,0.01186719,92020.0,92012.0,0.22834599]
[1765552177727,0.00805,92013.0,92012.0,0.00011632]
[1765552178319,0.09939839,92013.0,92012.0,0.00011632]
[1765552178522,0.07462839,92013.0,92012.0,0.00011632]
[1765552178735,0.05806839,92013.0,92012.0,0.00011632]
[1765552178943,0.09938839,92013.0,92012.0,0.00011632]
[1765552179155,0.07462839,92013.0,92012.0,0.00011632]
[1765552179767,0.06206839,92013.0,92012.0,0.00011632]
[1765552180189,0.01205,92013.0,92012.0,0.00011632]
[1765552180398,0.01505,92013.0,92012.0,0.00011632]
[1765552180609,0.10113282,92013.0,92012.0,0.00011632]
[1765552181052,0.16127065,92013.0,92012.0,0.00011632]
[1765552181513,0.11631783,92013.0,92012.0,0.00011632]
[1765552181700,0.07518783,92013.0,92012.0,0.00011632]
[1765552181943,0.01711944,92013.0,92012.0,0.00011632]
[1765552182145,0.02436,92013.0,92012.0,0.00011632]
[1765552182765,0.11494839,92013.0,92012.0,0.00011632]
[1765552182917,0.20640337,92013.0,92012.0,0.00011632]
[1765552183560,0.10105783,92013.0,92012.0,0.00011632]
[1765552183953,0.03447944,92013.0,92012.0,0.00011632]
[1765552184316,0.007,92013.0,92012.0,0.00011632]
[1765552184560,0.02436,92013.0,92012.0,0.00011632]
[1765552185273,0.02356,92013.0,92012.0,0.00011632]
[1765552185451,0.02436,92013.0,92012.0,0.00011632]
[1765552185791,0.007,92013.0,92012.0,0.00011632]
[1765552185991,0.25194761,92013.0,92012.0,0.00011632]
[1765552186202,0.25184003,92013.0,92012.0,0.00011632]
[1765552186411,0.01711944,92013.0,92012.0,0.00011632]
[1765552186567,0.007,92013.0,92012.0,0.00011632]
[1765552186756,0.007,92013.0,92012.0,0.21747927]
[1765552186959,0.007,92013.0,92012.0,0.25620927]
[1765552187297,0.007,92013.0,92012.0,0.00011632]
[1765552187479,0.03174456,92013.0,92012.0,0.00011632]
[1765552187685,0.01322702,92013.0,92012.0,0.00011632]
[1765552188037,0.003,92013.0,92012.0,0.00011632]
[1765552188361,0.23358761,92013.0,92012.0,0.00011632]
[1765552188559,0.006,92013.0,92012.0,0.00011632]
[1765552188761,0.003,92013.0,92012.0,0.00011632]
[1765552188920,0.02036,92013.0,92012.0,0.00011632]
[1765552189142,0.02136,92013.0,92012.0,0.00011632]
[1765552189344,0.02036,92013.0,92012.0,0.00011632]
[1765552189765,0.02336,92013.0,92012.0,0.00011632]
[1765552190113,0.01322702,92013.0,92012.0,0.00011632]
[1765552190446,0.01522702,92013.0,92012.0,0.00011632]
[1765552190654,0.003,92013.0,92012.0,0.00011632]
[1765552190857,0.003,92013.0,92012.0,0.21747927]
[1765552191086,0.01086779,92015.0,92012.0,0.00011632]
[1765552191297,0.22758753,92014.0,92012.0,0.00011632]
[1765552191502,0.01086743,92018.0,92012.0,0.00011632]
[1765552191503,0.004,92013.0,92012.0,0.00011632]
[1765552191956,0.006,92013.0,92012.0,0.00011632]
[1765552192173,0.002,92013.0,92012.0,0.00011632]
[1765552192396,0.01086743,92018.0,92012.0,0.00011632]
[1765552192397,0.01012103,92018.0,92016.0,0.2173535]
[1765552192598,0.01012103,92018.0,92015.0,0.01086779]
[1765552192599,0.01086637,92027.0,92023.0,0.01086684]
[1765552192799,0.01011992,92030.0,92028.0,0.21732471]
[1765552193021,0.01736,92033.0,92028.0,0.21732471]
[1765552193022,0.01086578,92032.0,92029.0,0.03462614]
[1765552193241,0.22818162,92032.0,92029.0,0.05884]
[1765552193442,0.00099999,92020.0,92016.0,0.01086767]
[1765552193663,0.01086684,92023.0,92018.0,0.01086743]
[1765552193983,0.01086684,92023.0,92019.0,0.01086732]
[1765552194271,0.00499998,92030.0,92021.0,0.01086708]
[1765552194400,0.00499998,92030.0,92010.0,0.01632]
[1765552194401,0.00199998,92020.0,92017.0,0.01086755]
[1765552194619,0.00099999,92020.0,92018.0,0.21734842]
[1765552194952,0.00099999,92020.0,92014.0,0.21735592]
[1765552194953,0.00099999,92040.0,92012.0,0.00011632]
[1765552195131,0.21735822,92014.0,92012.0,0.00011632]
[1765552195332,0.01022702,92013.0,92012.0,0.00011632]
[1765552195936,0.02342287,92029.0,92013.0,0.01086802]
[1765552195937,0.0108672,92020.0,92013.0,0.01086802]
[1765552196216,0.2282259,92015.0,92012.0,0.00011632]
[1765552196343,0.21736059,92013.0,92012.0,0.00011632]
[1765552196548,0.2282259,92015.0,92012.0,0.00011632]
[1765552196844,0.02822743,92018.0,92013.0,0.01086802]
[1765552197055,0.02822743,92018.0,92014.0,0.01086791]
[1765552197240,0.01086767,92016.0,92012.0,0.01098446]
[1765552197459,0.02822743,92018.0,92013.0,0.22822636]
[1765552197665,0.22821644,92018.0,92014.0,0.01086791]
[1765552197807,0.01086779,92015.0,92012.0,0.01098446]
[1765552198005,0.01086767,92016.0,92013.0,0.01086802]
[1765552198186,0.01086743,92018.0,92014.0,0.01086791]
[1765552198391,0.01086755,92017.0,92012.0,0.22834726]
[1765552198648,0.001,92013.0,92012.0,0.00011632]
[1765552198883,0.01022702,92014.0,92012.0,0.00011632]
[1765552199028,0.21736059,92013.0,92012.0,0.00011632]
[1765552199536,0.002,92013.0,92012.0,0.21747927]
[1765552199739,0.003,92013.0,92012.0,0.27631927]
[1765552200122,0.21733517,92024.0,92012.0,0.27631927]
[1765552200124,0.01086389,92048.0,92033.0,0.01086566]
[1765552200327,0.01736,92057.0,92034.0,0.01086554]
[1765552200328,0.01086472,92041.0,92034.0,0.01086554]
[1765552200557,0.01266,92042.0,92036.0,0.21730627]
[1765552200755,0.02325005,92058.0,92036.0,0.21730627]
[1765552200757,0.12272755,92037.0,92036.0,0.24106627]
[1765552200926,0.01086035,92078.0,92036.0,0.24106627]
[1765552200927,0.01085988,92082.0,92076.0,0.22807245]
[1765552201122,0.01085988,92082.0,92072.0,0.01086106]
[1765552201123,0.01085988,92082.0,92074.0,0.21721658]
[1765552201124,0.22967139,92082.0,92074.0,0.21721658]
[1765552201311,0.00161287,92082.0,92079.0,0.01086023]
[1765552201511,0.01086082,92074.0,92057.0,0.01736]
[1765552201771,0.01086082,92074.0,92030.0,1.08859974]
[1765552201772,0.01247369,92074.0,92065.0,0.01086189]
[1765552202009,0.01247369,92074.0,92053.0,0.01736]
[1765552202010,0.02327063,92089.0,92053.0,0.01736]
[1765552202011,0.01085976,92083.0,92078.0,0.21720677]
[1765552202220,0.01086071,92075.0,92072.0,0.01086106]
[1765552202426,0.01086071,92075.0,92011.0,2.79500064]
[1765552202427,0.01086118,92071.0,92067.0,0.01086165]
[1765552202702,0.01086283,92057.0,92050.0,0.21727229]
[1765552202844,0.010862,92064.0,92055.0,0.01086307]
[1765552203085,0.01086271,92058.0,92055.0,0.01086307]
[1765552203294,0.01086271,92058.0,92048.0,0.21727794]
[1765552203295,0.01086354,92051.0,92042.0,0.21729031]
[1765552203494,0.02209,92056.0,92049.0,0.01086377]
[1765552203495,0.01086318,92054.0,92049.0,0.01086377]
[1765552203692,0.01086401,92047.0,92040.0,0.01086484]
[1765552203890,0.00161287,92054.0,92052.0,0.21726633]
[1765552204245,0.010862,92064.0,92057.0,0.01086283]
[1765552204372,0.010862,92064.0,92051.0,0.01086354]
[1765552204373,0.00161287,92064.0,92050.0,0.01086366]
[1765552204572,0.01086248,92060.0,92056.0,0.01086295]
[1765552204810,0.01086259,92059.0,92055.0,0.01086307]
[1765552205020,0.01086295,92056.0,92051.0,0.01086354]
[1765552205236,0.22812981,92053.0,92050.0,0.00011632]
[1765552205557,0.23936086,92051.0,92050.0,0.00011632]
[1765552205765,0.02209,92051.0,92050.0,0.00011632]
[1765552205930,0.01736,92057.0,92053.0,0.0108633]
[1765552206128,0.01736,92057.0,92055.0,0.21726141]
[1765552206292,0.01736,92057.0,92054.0,0.01086318]
[1765552206500,0.02822283,92057.0,92054.0,0.01086318]
[1765552206701,0.01086259,92059.0,92055.0,0.01086307]
[1765552207111,0.01086307,92055.0,92052.0,0.01086342]
[1765552207323,0.01086307,92055.0,92025.0,0.01086661]
[1765552207324,0.05001839,92051.0,92025.0,0.01086661]
[1765552207518,0.07210839,92051.0,92029.0,0.01086614]
[1765552207808,0.10612839,92051.0,92029.0,0.01086614]
[1765552207957,0.10612839,92051.0,92034.0,0.01086554]
[1765552208136,0.10612839,92051.0,92036.0,0.01086531]
[1765552208752,0.05611,92051.0,92040.0,0.01086484]
[1765552208967,0.05611,92051.0,92041.0,0.01086472]
[1765552209482,0.05611,92051.0,92026.0,0.01086649]
[1765552209483,0.01086578,92032.0,92026.0,0.01086649]
[1765552209687,0.00011669,92032.0,92030.0,0.01086602]
[1765552209891,0.00011669,92032.0,92031.0,0.21731807]
[1765552211442,0.00011669,92032.0,92028.0,0.01086625]
[1765552211653,0.00011669,92032.0,92030.0,0.21732043]
[1765552211843,0.00011669,92032.0,92030.0,0.26404572]
[1765552212126,0.00011669,92032.0,92030.0,0.21805223]
[1765552212342,0.00011669,92032.0,92031.0,0.007154]
[1765552212625,0.00011669,92032.0,92030.0,0.21405223]
[1765552213378,0.00011669,92032.0,92030.0,0.22305223]
[1765552213681,0.00011669,92032.0,92030.0,0.21705223]
[1765552213927,0.00011669,92032.0,92031.0,0.21731807]
[1765552214098,0.00011669,92032.0,92031.0,0.2436964]
[1765552214299,0.00011669,92032.0,92031.0,0.21731807]
[1765552215164,0.00011669,92032.0,92030.0,0.005]
[1765552215378,0.00011669,92032.0,92025.0,0.21733181]
[1765552215379,0.01086614,92029.0,92025.0,0.01086661]
[1765552215584,0.00011669,92032.0,92029.0,0.22818667]
[1765552215791,0.00011669,92032.0,92031.0,0.005]
[1765552215992,0.00011669,92032.0,92029.0,0.01086614]
[1765552216125,0.00011669,92032.0,92030.0,0.21732043]
[1765552216328,0.00111669,92032.0,92030.0,0.21732043]
[1765552216529,0.00111669,92032.0,92031.0,0.007381]
[1765552216738,0.00011669,92032.0,92030.0,0.21932043]
[1765552217072,0.00011669,92032.0,92031.0,0.007381]
[1765552217416,0.00011669,92032.0,92031.0,0.024741]
[1765552217634,0.01085964,92084.0,92077.0,0.01086047]
[1765552217830,0.01085964,92084.0,92066.0,0.21723324]
[1765552217831,0.01085964,92084.0,92073.0,0.01086094]
[1765552217832,0.01086047,92077.0,92073.0,0.01086094]
[1765552218035,0.01086047,92077.0,92066.0,0.01086177]
[1765552218036,0.01086094,92073.0,92069.0,0.01086141]
[1765552218237,0.01086094,92073.0,92064.0,0.010862]
[1765552218238,0.0001169,92084.0,92074.0,0.01086082]
[1765552218484,0.01085988,92082.0,92077.0,0.01086047]
[1765552218725,0.0001169,92084.0,92083.0,0.21719535]
[1765552218846,0.0001169,92084.0,92081.0,0.01086]
[1765552219554,0.0001169,92084.0,92082.0,0.21719771]
[1765552220149,0.0001169,92084.0,92081.0,0.01086]
[1765552220578,0.0001169,92084.0,92053.0,0.0108633]
[1765552220579,0.01086153,92068.0,92053.0,0.0108633]
[1765552220782,0.01086189,92065.0,92058.0,0.01086271]
[1765552220981,0.01086165,92067.0,92062.0,0.01086224]
[1765552221205,0.22810409,92064.0,92059.0,0.01086259]
[1765552221406,0.01086271,92058.0,92053.0,0.22812944]
[1765552221620,0.01086236,92061.0,92058.0,0.01086271]
[1765552221832,0.01086212,92063.0,92056.0,0.01086295]
[1765552222101,0.01086212,92063.0,92059.0,0.01086259]
[1765552222520,0.01086259,92059.0,92054.0,0.01086318]
[1765552222901,0.01086248,92060.0,92058.0,0.002]
[1765552223121,0.01086248,92060.0,92057.0,0.01086283]
[1765552223262,0.01086271,92058.0,92055.0,0.01086307]